[Event "Titled Tuesday Blitz July 20 2021"]
[White "Shevelev, Dmitri"]
[Black "Buchenau, Frank"]
[WhiteFideId "2802627"]
[BlackFideId "4604350"]
[WhiteElo "2262"]
[BlackElo "2255"]
[Result "0-1"]
[Round "05"]
[TimeControl "180+1"]
[Date "2021.07.21"]
[WhiteClock "0:00:03"]
[BlackClock "0:00:11"]

1. d4 {[%clk 0:03:00]}  e6 {[%clk 0:02:56]} 2. Nf3 {[%clk 0:03:01]}  Nf6 {[%clk 0:02:55]} 3. Nc3 {[%clk 0:03:01]}  d5 {[%clk 0:02:54]} 4. Bg5 {[%clk 0:03:02]}  h6 {[%clk 0:02:49]} 5. Bxf6 {[%clk 0:03:01]}  Qxf6 {[%clk 0:02:49]} 6. e4 {[%clk 0:03:02]}  dxe4 {[%clk 0:02:46]} 7. Nxe4 {[%clk 0:03:03]}  Qf4 {[%clk 0:02:43]} 8. Bd3 {[%clk 0:02:58]}  Be7 {[%clk 0:02:32]} 9. g3 {[%clk 0:02:39]}  Qg4 {[%clk 0:02:30]} 10. h3 {[%clk 0:02:38]}  Qh5 {[%clk 0:02:28]} 11. g4 {[%clk 0:02:38]}  Qa5+ {[%clk 0:02:27]} 12. c3 {[%clk 0:02:29]}  Nd7 {[%clk 0:02:22]} 13. Qe2 {[%clk 0:02:09]}  O-O {[%clk 0:02:10]} 14. h4 {[%clk 0:01:47]}  c5 {[%clk 0:02:02]} 15. g5 {[%clk 0:01:45]}  f5 {[%clk 0:01:39]} 16. gxh6 {[%clk 0:01:09]}  gxh6 {[%clk 0:01:15]} 17. Rg1+ {[%clk 0:01:03]}  Kh8 {[%clk 0:01:02]} 18. Qd2 {[%clk 0:00:39]}  Kh7 {[%clk 0:00:57]} 19. Neg5+ {[%clk 0:00:31]}  hxg5 {[%clk 0:00:54]} 20. Nxg5+ {[%clk 0:00:31]}  Kh8 {[%clk 0:00:41]} 21. Nxe6 {[%clk 0:00:20]}  Rf6 {[%clk 0:00:31]} 22. Ng7 {[%clk 0:00:08]}  Nf8 {[%clk 0:00:23]} 23. O-O-O {[%clk 0:00:06]}  cxd4 {[%clk 0:00:20]} 24. Qg5 {[%clk 0:00:06]}  Rg6 {[%clk 0:00:12]} 25. Qh5+ {[%clk 0:00:06]}  Kxg7 {[%clk 0:00:13]} 26. Rxg6+ {[%clk 0:00:05]}  Nxg6 {[%clk 0:00:14]} 27. Rg1 {[%clk 0:00:05]}  Qb6 {[%clk 0:00:13]} 28. Bxf5 {[%clk 0:00:04]}  Bxf5 {[%clk 0:00:12]} 29. Qxf5 {[%clk 0:00:05]}  Rf8 {[%clk 0:00:13]} 30. Qd3 {[%clk 0:00:05]}  dxc3 {[%clk 0:00:12]} 31. h5 {[%clk 0:00:05]}  Rf6 {[%clk 0:00:11]} 32. Kd1 {[%clk 0:00:06]}  Qxb2 {[%clk 0:00:11]} 33. Rxg6+ {[%clk 0:00:05]}  Rxg6 {[%clk 0:00:11]} 34. Qxg6+ {[%clk 0:00:05]}  Kf8 {[%clk 0:00:12]} 35. Qf5+ {[%clk 0:00:04]}  Ke8 {[%clk 0:00:12]} 36. Qc8+ {[%clk 0:00:04]}  Kf7 {[%clk 0:00:12]} 37. Qf5+ {[%clk 0:00:04]}  Bf6 {[%clk 0:00:12]} 38. Qd7+ {[%clk 0:00:04]}  Kf8 {[%clk 0:00:13]} 39. Qc8+ {[%clk 0:00:04]}  Ke7 {[%clk 0:00:13]} 40. Qc7+ {[%clk 0:00:05]}  Ke6 {[%clk 0:00:13]} 41. Qc8+ {[%clk 0:00:05]}  Ke5 {[%clk 0:00:12]} 42. Qe8+ {[%clk 0:00:05]}  Kf5 {[%clk 0:00:13]} 43. Qg6+ {[%clk 0:00:05]}  Ke6 {[%clk 0:00:13]} 44. Qe8+ {[%clk 0:00:06]}  Be7 {[%clk 0:00:12]} 45. Qg6+ {[%clk 0:00:06]}  Kd7 {[%clk 0:00:12]} 46. Qd3+ {[%clk 0:00:05]}  Kc7 {[%clk 0:00:12]} 47. Qg3+ {[%clk 0:00:05]}  Bd6 {[%clk 0:00:12]} 48. Qg7+ {[%clk 0:00:05]}  Kc6 {[%clk 0:00:12]} 49. Qg2+ {[%clk 0:00:04]}  Kb6 {[%clk 0:00:11]} 50. Qg5 {[%clk 0:00:03]}  c2+ {[%clk 0:00:11]} 51. Ke2 {[%clk 0:00:03]}  c1=Q+ {[%clk 0:00:11]} 52. Kf3 {[%clk 0:00:03]}  Qxg5 {[%clk 0:00:11]} 0-1


[Site "https://www.chess.com"]

[Event "Titled Tuesday Blitz July 20 2021"]
[White "Sinitsina, Anastassia"]
[Black "Pert, Richard G"]
[WhiteFideId "4504640"]
[BlackFideId "404748"]
[WhiteElo "2204"]
[BlackElo "2441"]
[Result "1/2-1/2"]
[Round "05"]
[TimeControl "180+1"]
[Date "2021.07.21"]
[WhiteClock "0:00:14"]
[BlackClock "0:00:14"]

1. Nf3 {[%clk 0:03:00]}  g6 {[%clk 0:02:57]} 2. g3 {[%clk 0:03:00]}  Bg7 {[%clk 0:02:56]} 3. Bg2 {[%clk 0:03:01]}  e5 {[%clk 0:02:57]} 4. O-O {[%clk 0:03:01]}  Nc6 {[%clk 0:02:56]} 5. c4 {[%clk 0:03:00]}  d6 {[%clk 0:02:53]} 6. Nc3 {[%clk 0:02:57]}  Be6 {[%clk 0:02:51]} 7. d3 {[%clk 0:02:56]}  Qd7 {[%clk 0:02:51]} 8. Re1 {[%clk 0:02:50]}  Bh3 {[%clk 0:02:50]} 9. Bh1 {[%clk 0:02:50]}  h6 {[%clk 0:02:44]} 10. Rb1 {[%clk 0:02:47]}  a5 {[%clk 0:02:42]} 11. a3 {[%clk 0:02:46]}  Nge7 {[%clk 0:02:39]} 12. b4 {[%clk 0:02:44]}  axb4 {[%clk 0:02:40]} 13. axb4 {[%clk 0:02:43]}  O-O {[%clk 0:02:39]} 14. b5 {[%clk 0:02:43]}  Nd8 {[%clk 0:02:40]} 15. Bd2 {[%clk 0:02:38]}  Kh7 {[%clk 0:02:39]} 16. Qc2 {[%clk 0:02:32]}  f5 {[%clk 0:02:34]} 17. Ra1 {[%clk 0:02:26]}  Rb8 {[%clk 0:02:31]} 18. Ra7 {[%clk 0:02:19]}  Ne6 {[%clk 0:02:30]} 19. Rea1 {[%clk 0:02:10]}  f4 {[%clk 0:02:24]} 20. Ne4 {[%clk 0:02:05]}  Nf5 {[%clk 0:02:19]} 21. Bc3 {[%clk 0:01:57]}  fxg3 {[%clk 0:02:11]} 22. hxg3 {[%clk 0:01:54]}  Bg4 {[%clk 0:01:45]} 23. Bg2 {[%clk 0:01:38]}  Bxf3 {[%clk 0:01:38]} 24. exf3 {[%clk 0:01:29]}  Nfd4 {[%clk 0:01:33]} 25. Qd1 {[%clk 0:01:29]}  Qf7 {[%clk 0:01:31]} 26. b6 {[%clk 0:01:08]}  cxb6 {[%clk 0:01:03]} 27. Nxd6 {[%clk 0:01:06]}  Qd7 {[%clk 0:01:03]} 28. Ne4 {[%clk 0:01:01]}  Nc5 {[%clk 0:00:58]} 29. Bb4 {[%clk 0:00:54]}  Rfc8 {[%clk 0:00:44]} 30. Bxc5 {[%clk 0:00:44]}  bxc5 {[%clk 0:00:45]} 31. Qa4 {[%clk 0:00:27]}  Qe7 {[%clk 0:00:35]} 32. Rb1 {[%clk 0:00:26]}  Rf8 {[%clk 0:00:33]} 33. Qa3 {[%clk 0:00:23]}  Nxf3+ {[%clk 0:00:30]} 34. Bxf3 {[%clk 0:00:22]}  Rxf3 {[%clk 0:00:31]} 35. Qxc5 {[%clk 0:00:22]}  Qd7 {[%clk 0:00:18]} 36. Qd6 {[%clk 0:00:19]}  Qxd6 {[%clk 0:00:17]} 37. Nxd6 {[%clk 0:00:19]}  Rxd3 {[%clk 0:00:18]} 38. Raxb7 {[%clk 0:00:17]}  Rxb7 {[%clk 0:00:16]} 39. Nxb7 {[%clk 0:00:17]}  e4 {[%clk 0:00:16]} 40. c5 {[%clk 0:00:16]}  Rc3 {[%clk 0:00:14]} 41. Re1 {[%clk 0:00:13]}  Bd4 {[%clk 0:00:13]} 42. Rxe4 {[%clk 0:00:13]}  Bxc5 {[%clk 0:00:13]} 43. Nxc5 {[%clk 0:00:13]}  Rxc5 {[%clk 0:00:14]} 44. Re7+ {[%clk 0:00:13]}  Kg8 {[%clk 0:00:14]} 45. Kg2 {[%clk 0:00:14]} 1/2-1/2


[Site "https://www.chess.com"]

[Event "Titled Tuesday Blitz July 20 2021"]
[White "Skatchkov, Valery"]
[Black "Woodward, Andy"]
[WhiteFideId "24195812"]
[BlackFideId "30953499"]
[WhiteElo "2199"]
[BlackElo "2137"]
[Result "0-1"]
[Round "05"]
[TimeControl "180+1"]
[Date "2021.07.21"]
[WhiteClock "0:00:22"]
[BlackClock "0:00:17"]

1. d4 {[%clk 0:02:59]}  Nf6 {[%clk 0:02:56]} 2. Bf4 {[%clk 0:02:59]}  d5 {[%clk 0:02:55]} 3. Nc3 {[%clk 0:02:58]}  Bf5 {[%clk 0:02:54]} 4. Nb5 {[%clk 0:02:57]}  Na6 {[%clk 0:02:52]} 5. e3 {[%clk 0:02:57]}  e6 {[%clk 0:02:50]} 6. Nf3 {[%clk 0:02:56]}  c6 {[%clk 0:02:50]} 7. Nc3 {[%clk 0:02:44]}  Bb4 {[%clk 0:02:36]} 8. Bxa6 {[%clk 0:02:30]}  bxa6 {[%clk 0:02:34]} 9. O-O {[%clk 0:02:28]}  O-O {[%clk 0:02:33]} 10. Na4 {[%clk 0:02:26]}  Ne4 {[%clk 0:02:23]} 11. Ne5 {[%clk 0:02:19]}  Rc8 {[%clk 0:02:20]} 12. Nd3 {[%clk 0:02:19]}  Be7 {[%clk 0:02:14]} 13. f3 {[%clk 0:02:16]}  Nd6 {[%clk 0:02:14]} 14. Ndc5 {[%clk 0:02:14]}  Nc4 {[%clk 0:02:01]} 15. Nb7 {[%clk 0:01:38]}  Qd7 {[%clk 0:01:28]} 16. Nac5 {[%clk 0:01:37]}  Bxc5 {[%clk 0:01:27]} 17. Nxc5 {[%clk 0:01:38]}  Qe7 {[%clk 0:01:27]} 18. b3 {[%clk 0:01:35]}  e5 {[%clk 0:01:26]} 19. bxc4 {[%clk 0:01:22]}  exf4 {[%clk 0:01:25]} 20. exf4 {[%clk 0:01:23]}  Qe3+ {[%clk 0:01:04]} 21. Rf2 {[%clk 0:01:22]}  Qxf4 {[%clk 0:01:05]} 22. cxd5 {[%clk 0:01:21]}  cxd5 {[%clk 0:01:05]} 23. c3 {[%clk 0:01:21]}  Rfe8 {[%clk 0:01:01]} 24. Qd2 {[%clk 0:01:19]}  Qd6 {[%clk 0:00:59]} 25. Re1 {[%clk 0:01:17]}  h6 {[%clk 0:00:54]} 26. Rxe8+ {[%clk 0:01:14]}  Rxe8 {[%clk 0:00:55]} 27. Re2 {[%clk 0:01:15]}  Rb8 {[%clk 0:00:54]} 28. Re5 {[%clk 0:01:11]}  Bg6 {[%clk 0:00:51]} 29. h4 {[%clk 0:01:05]}  Rb1+ {[%clk 0:00:44]} 30. Kf2 {[%clk 0:01:04]}  f6 {[%clk 0:00:41]} 31. Re1 {[%clk 0:00:53]}  Rb8 {[%clk 0:00:41]} 32. Qe2 {[%clk 0:00:35]}  Kh7 {[%clk 0:00:34]} 33. g3 {[%clk 0:00:32]}  Rb6 {[%clk 0:00:27]} 34. Qe6 {[%clk 0:00:27]}  Qb8 {[%clk 0:00:18]} 35. Qxd5 {[%clk 0:00:24]}  Rb2+ {[%clk 0:00:17]} 36. Re2 {[%clk 0:00:25]}  Rxe2+ {[%clk 0:00:17]} 37. Kxe2 {[%clk 0:00:25]}  Qb2+ {[%clk 0:00:17]} 38. Ke3 {[%clk 0:00:25]}  Qxc3+ {[%clk 0:00:16]} 39. Kf4 {[%clk 0:00:23]}  Qc1+ {[%clk 0:00:16]} 40. Kg4 {[%clk 0:00:21]}  h5+ {[%clk 0:00:16]} 41. Qxh5+ {[%clk 0:00:21]}  Bxh5+ {[%clk 0:00:17]} 42. Kxh5 {[%clk 0:00:22]}  Qe3 {[%clk 0:00:17]} 0-1


[Site "https://www.chess.com"]

[Event "Titled Tuesday Blitz July 20 2021"]
[White "Stribuk, Artiom"]
[Black "Jodorcovsky Werjivker, Paulo"]
[WhiteFideId "13515659"]
[BlackFideId "3700305"]
[WhiteElo "2224"]
[BlackElo "2142"]
[Result "1-0"]
[Round "05"]
[TimeControl "180+1"]
[Date "2021.07.21"]
[WhiteClock "0:00:39"]
[BlackClock "0:00:14"]

1. d4 {[%clk 0:02:59]}  Nf6 {[%clk 0:02:59]} 2. c4 {[%clk 0:02:57]}  g6 {[%clk 0:02:58]} 3. Nf3 {[%clk 0:02:58]}  Bg7 {[%clk 0:02:51]} 4. g3 {[%clk 0:02:58]}  O-O {[%clk 0:02:50]} 5. Bg2 {[%clk 0:02:57]}  d6 {[%clk 0:02:51]} 6. O-O {[%clk 0:02:58]}  Nbd7 {[%clk 0:02:32]} 7. Nc3 {[%clk 0:02:56]}  e5 {[%clk 0:02:32]} 8. e4 {[%clk 0:02:56]}  exd4 {[%clk 0:02:25]} 9. Nxd4 {[%clk 0:02:56]}  Re8 {[%clk 0:02:26]} 10. Re1 {[%clk 0:02:55]}  a6 {[%clk 0:02:25]} 11. h3 {[%clk 0:02:51]}  Rb8 {[%clk 0:02:25]} 12. Bf4 {[%clk 0:02:34]}  Nh5 {[%clk 0:02:19]} 13. Be3 {[%clk 0:02:30]}  Ne5 {[%clk 0:02:19]} 14. Qe2 {[%clk 0:02:24]}  Bd7 {[%clk 0:02:09]} 15. Rad1 {[%clk 0:02:22]}  c5 {[%clk 0:02:06]} 16. Nc2 {[%clk 0:02:02]}  Be6 {[%clk 0:02:05]} 17. Nd5 {[%clk 0:01:58]}  Bxd5 {[%clk 0:02:03]} 18. Rxd5 {[%clk 0:01:56]}  Nf6 {[%clk 0:02:02]} 19. Rd2 {[%clk 0:01:49]}  Qb6 {[%clk 0:02:02]} 20. b3 {[%clk 0:01:48]}  Rbd8 {[%clk 0:02:02]} 21. Red1 {[%clk 0:01:48]}  Rd7 {[%clk 0:02:02]} 22. Kh2 {[%clk 0:01:48]}  Red8 {[%clk 0:02:02]} 23. f4 {[%clk 0:01:49]}  Nc6 {[%clk 0:02:00]} 24. Rd3 {[%clk 0:01:44]}  Ne8 {[%clk 0:01:53]} 25. Qd2 {[%clk 0:01:42]}  f6 {[%clk 0:01:46]} 26. h4 {[%clk 0:01:41]}  h5 {[%clk 0:01:45]} 27. Bh3 {[%clk 0:01:40]}  Re7 {[%clk 0:01:44]} 28. Bg2 {[%clk 0:01:33]}  Red7 {[%clk 0:01:43]} 29. Qf2 {[%clk 0:01:33]}  Qc7 {[%clk 0:01:36]} 30. Bd2 {[%clk 0:01:23]}  a5 {[%clk 0:01:33]} 31. Bc3 {[%clk 0:01:23]}  Qb6 {[%clk 0:01:31]} 32. Ne3 {[%clk 0:01:21]}  Nc7 {[%clk 0:01:25]} 33. Bh3 {[%clk 0:01:15]}  Re7 {[%clk 0:01:19]} 34. Bg2 {[%clk 0:01:08]}  Red7 {[%clk 0:01:19]} 35. Qf3 {[%clk 0:01:08]}  Nb4 {[%clk 0:01:16]} 36. R3d2 {[%clk 0:01:08]}  Ne8 {[%clk 0:00:47]} 37. f5 {[%clk 0:01:08]}  Nc6 {[%clk 0:00:42]} 38. fxg6 {[%clk 0:01:07]}  Ne5 {[%clk 0:00:41]} 39. Qxh5 {[%clk 0:01:05]}  Bh8 {[%clk 0:00:38]} 40. Nf5 {[%clk 0:01:03]}  Qc6 {[%clk 0:00:29]} 41. Bxe5 {[%clk 0:00:53]}  dxe5 {[%clk 0:00:30]} 42. Ne7+ {[%clk 0:00:51]}  Rxe7 {[%clk 0:00:29]} 43. Rxd8 {[%clk 0:00:51]}  b5 {[%clk 0:00:25]} 44. R1d7 {[%clk 0:00:47]}  Qe6 {[%clk 0:00:18]} 45. Bh3 {[%clk 0:00:44]}  Qb6 {[%clk 0:00:15]} 46. Qh7+ {[%clk 0:00:39]}  Rxh7 {[%clk 0:00:14]} 47. Rxe8# {[%clk 0:00:39]} 1-0


[Site "https://www.chess.com"]

[Event "Titled Tuesday Blitz July 20 2021"]
[White "Sukandar, Irine Kharisma"]
[Black "Quintiliano Pinto, Renato R."]
[WhiteFideId "7101937"]
[BlackFideId "2117568"]
[WhiteElo "2313"]
[BlackElo "2439"]
[Result "0-1"]
[Round "05"]
[TimeControl "180+1"]
[Date "2021.07.21"]
[WhiteClock "0:00:15"]
[BlackClock "0:00:16"]

1. d4 {[%clk 0:02:51]}  d5 {[%clk 0:02:59]} 2. Bf4 {[%clk 0:02:47]}  Nf6 {[%clk 0:02:59]} 3. e3 {[%clk 0:02:45]}  c5 {[%clk 0:02:58]} 4. Nd2 {[%clk 0:02:44]}  Nc6 {[%clk 0:02:58]} 5. c3 {[%clk 0:02:43]}  e6 {[%clk 0:02:57]} 6. Ngf3 {[%clk 0:02:44]}  Be7 {[%clk 0:02:56]} 7. Ne5 {[%clk 0:02:39]}  O-O {[%clk 0:02:52]} 8. Bd3 {[%clk 0:02:39]}  cxd4 {[%clk 0:02:42]} 9. exd4 {[%clk 0:02:38]}  Bd6 {[%clk 0:02:41]} 10. O-O {[%clk 0:02:36]}  Qc7 {[%clk 0:02:39]} 11. Re1 {[%clk 0:02:34]}  Ne7 {[%clk 0:02:36]} 12. Ndf3 {[%clk 0:02:30]}  Ng6 {[%clk 0:02:33]} 13. Nxg6 {[%clk 0:02:29]}  hxg6 {[%clk 0:02:34]} 14. Bxd6 {[%clk 0:02:27]}  Qxd6 {[%clk 0:02:35]} 15. Ne5 {[%clk 0:02:28]}  Nd7 {[%clk 0:02:16]} 16. Qd2 {[%clk 0:02:19]}  Nxe5 {[%clk 0:02:11]} 17. Rxe5 {[%clk 0:02:16]}  Bd7 {[%clk 0:02:10]} 18. Rae1 {[%clk 0:02:15]}  a6 {[%clk 0:02:07]} 19. h4 {[%clk 0:01:57]}  Bb5 {[%clk 0:01:48]} 20. h5 {[%clk 0:01:51]}  Bxd3 {[%clk 0:01:44]} 21. Qxd3 {[%clk 0:01:51]}  gxh5 {[%clk 0:01:43]} 22. Rxh5 {[%clk 0:01:48]}  g6 {[%clk 0:01:40]} 23. Ree5 {[%clk 0:01:41]}  Kg7 {[%clk 0:01:34]} 24. Rh3 {[%clk 0:01:19]}  Rh8 {[%clk 0:01:32]} 25. Rg3 {[%clk 0:01:14]}  Rh6 {[%clk 0:01:30]} 26. f4 {[%clk 0:01:04]}  Rah8 {[%clk 0:01:27]} 27. Qf3 {[%clk 0:00:54]}  Qb6 {[%clk 0:01:23]} 28. Re2 {[%clk 0:00:52]}  Qa5 {[%clk 0:01:16]} 29. f5 {[%clk 0:00:50]}  exf5 {[%clk 0:01:01]} 30. Qxf5 {[%clk 0:00:50]}  Qxa2 {[%clk 0:00:33]} 31. Qe5+ {[%clk 0:00:47]}  Kh7 {[%clk 0:00:32]} 32. Rf3 {[%clk 0:00:32]}  Rf8 {[%clk 0:00:14]} 33. Qe7 {[%clk 0:00:29]}  Kg8 {[%clk 0:00:14]} 34. Qxb7 {[%clk 0:00:17]}  Qb1+ {[%clk 0:00:14]} 35. Rf1 {[%clk 0:00:17]}  Rh1+ {[%clk 0:00:14]} 36. Kxh1 {[%clk 0:00:15]}  Qxf1+ {[%clk 0:00:15]} 37. Kh2 {[%clk 0:00:15]}  Qxe2 {[%clk 0:00:16]} 0-1


[Site "https://www.chess.com"]

[Event "Titled Tuesday Blitz July 20 2021"]
[White "Tanenbaum, Zachary"]
[Black "Song, Michael"]
[WhiteFideId "2060850"]
[BlackFideId "2613190"]
[WhiteElo "2165"]
[BlackElo "2274"]
[Result "0-1"]
[Round "05"]
[TimeControl "180+1"]
[Date "2021.07.21"]
[WhiteClock "0:00:05"]
[BlackClock "0:00:55"]

1. e4 {[%clk 0:03:00]}  e5 {[%clk 0:02:59]} 2. Nf3 {[%clk 0:03:00]}  Nc6 {[%clk 0:03:00]} 3. Bc4 {[%clk 0:03:00]}  Bc5 {[%clk 0:02:59]} 4. c3 {[%clk 0:03:00]}  Nf6 {[%clk 0:02:59]} 5. d3 {[%clk 0:03:01]}  d6 {[%clk 0:02:58]} 6. Nbd2 {[%clk 0:03:00]}  O-O {[%clk 0:02:58]} 7. a4 {[%clk 0:03:00]}  a6 {[%clk 0:02:57]} 8. Nf1 {[%clk 0:02:58]}  Ne7 {[%clk 0:02:57]} 9. Ng3 {[%clk 0:02:58]}  Ng6 {[%clk 0:02:58]} 10. O-O {[%clk 0:02:58]}  Be6 {[%clk 0:02:56]} 11. Bxe6 {[%clk 0:02:56]}  fxe6 {[%clk 0:02:57]} 12. Be3 {[%clk 0:02:56]}  Bxe3 {[%clk 0:02:45]} 13. fxe3 {[%clk 0:02:57]}  Qd7 {[%clk 0:02:39]} 14. Nd2 {[%clk 0:02:54]}  h6 {[%clk 0:02:37]} 15. Nh5 {[%clk 0:02:19]}  Nxh5 {[%clk 0:02:34]} 16. Qxh5 {[%clk 0:02:20]}  Kh7 {[%clk 0:02:34]} 17. Rf3 {[%clk 0:02:05]}  Rxf3 {[%clk 0:02:33]} 18. Nxf3 {[%clk 0:02:06]}  Qe7 {[%clk 0:02:10]} 19. h4 {[%clk 0:01:57]}  Nh8 {[%clk 0:02:01]} 20. Rf1 {[%clk 0:01:20]}  Rf8 {[%clk 0:01:55]} 21. d4 {[%clk 0:01:01]}  exd4 {[%clk 0:01:49]} 22. exd4 {[%clk 0:01:02]}  Kg8 {[%clk 0:01:42]} 23. Qg4 {[%clk 0:00:31]}  Rf6 {[%clk 0:01:34]} 24. e5 {[%clk 0:00:30]}  Rf5 {[%clk 0:01:33]} 25. exd6 {[%clk 0:00:25]}  cxd6 {[%clk 0:01:34]} 26. Re1 {[%clk 0:00:25]}  Qf7 {[%clk 0:01:29]} 27. Qe4 {[%clk 0:00:25]}  Rf6 {[%clk 0:01:29]} 28. a5 {[%clk 0:00:25]}  Ng6 {[%clk 0:01:26]} 29. d5 {[%clk 0:00:14]}  e5 {[%clk 0:01:23]} 30. c4 {[%clk 0:00:09]}  Rf4 {[%clk 0:01:17]} 31. Qd3 {[%clk 0:00:08]}  Nxh4 {[%clk 0:01:11]} 32. Nxh4 {[%clk 0:00:09]}  Rxh4 {[%clk 0:01:11]} 33. Rf1 {[%clk 0:00:09]}  Rf4 {[%clk 0:01:10]} 34. Rxf4 {[%clk 0:00:09]}  Qxf4 {[%clk 0:01:10]} 35. c5 {[%clk 0:00:09]}  Qc1+ {[%clk 0:01:08]} 36. Kh2 {[%clk 0:00:08]}  Qxc5 {[%clk 0:01:08]} 37. Qf3 {[%clk 0:00:06]}  Qxa5 {[%clk 0:01:02]} 38. Qb3 {[%clk 0:00:06]}  Qc7 {[%clk 0:01:01]} 39. Qf3 {[%clk 0:00:05]}  Qf7 {[%clk 0:00:57]} 40. Qd3 {[%clk 0:00:04]}  b5 {[%clk 0:00:55]} 41. Qe4 {[%clk 0:00:04]}  Qf4+ {[%clk 0:00:54]} 42. Qxf4 {[%clk 0:00:04]}  exf4 {[%clk 0:00:55]} 43. Kg1 {[%clk 0:00:04]}  Kf7 {[%clk 0:00:55]} 44. Kf2 {[%clk 0:00:05]}  Kf6 {[%clk 0:00:55]} 45. Kf3 {[%clk 0:00:05]}  Ke5 {[%clk 0:00:55]} 0-1


[Site "https://www.chess.com"]

[Event "Titled Tuesday Blitz July 20 2021"]
[White "Tin, Jingyao"]
[Black "Rustemov, Alexander"]
[WhiteFideId "5804418"]
[BlackFideId "4119002"]
[WhiteElo "2374"]
[BlackElo "2856"]
[Result "1/2-1/2"]
[Round "05"]
[TimeControl "180+1"]
[Date "2021.07.20"]
[WhiteClock "0:00:08"]
[BlackClock "0:00:07"]

1. d4 {[%clk 0:03:00]}  d5 {[%clk 0:02:59]} 2. c4 {[%clk 0:03:00]}  e6 {[%clk 0:02:59]} 3. Nf3 {[%clk 0:03:01]}  Nf6 {[%clk 0:02:59]} 4. Nc3 {[%clk 0:03:01]}  Be7 {[%clk 0:02:59]} 5. Bf4 {[%clk 0:03:01]}  O-O {[%clk 0:02:58]} 6. e3 {[%clk 0:03:01]}  b6 {[%clk 0:02:58]} 7. cxd5 {[%clk 0:03:01]}  Nxd5 {[%clk 0:02:58]} 8. Nxd5 {[%clk 0:03:01]}  exd5 {[%clk 0:02:59]} 9. Bd3 {[%clk 0:02:53]}  c5 {[%clk 0:03:00]} 10. O-O {[%clk 0:02:53]}  c4 {[%clk 0:02:59]} 11. Bc2 {[%clk 0:02:50]}  b5 {[%clk 0:02:59]} 12. e4 {[%clk 0:02:41]}  Be6 {[%clk 0:02:54]} 13. e5 {[%clk 0:02:27]}  Nc6 {[%clk 0:02:52]} 14. Rc1 {[%clk 0:02:24]}  Rc8 {[%clk 0:02:43]} 15. Bb1 {[%clk 0:02:11]}  Qd7 {[%clk 0:02:42]} 16. Qc2 {[%clk 0:01:43]}  g6 {[%clk 0:02:40]} 17. Qd2 {[%clk 0:01:40]}  Bf5 {[%clk 0:02:38]} 18. Bg5 {[%clk 0:01:35]}  Bxb1 {[%clk 0:02:33]} 19. Bxe7 {[%clk 0:01:34]}  Qxe7 {[%clk 0:02:29]} 20. Rxb1 {[%clk 0:01:33]}  Nd8 {[%clk 0:02:18]} 21. Ne1 {[%clk 0:01:14]}  Ne6 {[%clk 0:02:16]} 22. f4 {[%clk 0:01:13]}  f5 {[%clk 0:02:11]} 23. Nc2 {[%clk 0:01:10]}  b4 {[%clk 0:02:08]} 24. Qxb4 {[%clk 0:01:08]}  Qd7 {[%clk 0:01:48]} 25. Qc3 {[%clk 0:01:02]}  Rb8 {[%clk 0:01:42]} 26. b3 {[%clk 0:00:54]}  Rfc8 {[%clk 0:01:39]} 27. bxc4 {[%clk 0:00:51]}  Rxb1 {[%clk 0:01:38]} 28. Rxb1 {[%clk 0:00:52]}  dxc4 {[%clk 0:01:36]} 29. Rd1 {[%clk 0:00:47]}  Nxf4 {[%clk 0:01:34]} 30. Qf3 {[%clk 0:00:45]}  Nd5 {[%clk 0:01:33]} 31. Ne3 {[%clk 0:00:43]}  Nxe3 {[%clk 0:01:31]} 32. Qxe3 {[%clk 0:00:44]}  c3 {[%clk 0:01:29]} 33. Rc1 {[%clk 0:00:34]}  c2 {[%clk 0:01:27]} 34. h3 {[%clk 0:00:24]}  Rc4 {[%clk 0:01:22]} 35. Rxc2 {[%clk 0:00:21]}  Rxc2 {[%clk 0:01:14]} 36. Qb3+ {[%clk 0:00:21]}  Kg7 {[%clk 0:01:14]} 37. Qxc2 {[%clk 0:00:21]}  Qxd4+ {[%clk 0:01:14]} 38. Kh1 {[%clk 0:00:19]}  Qxe5 {[%clk 0:01:11]} 39. Qc4 {[%clk 0:00:14]}  a5 {[%clk 0:01:09]} 40. Qb3 {[%clk 0:00:14]}  h5 {[%clk 0:01:08]} 41. a4 {[%clk 0:00:14]}  Kh6 {[%clk 0:01:04]} 42. Qc4 {[%clk 0:00:13]}  Qe1+ {[%clk 0:00:59]} 43. Kh2 {[%clk 0:00:13]}  h4 {[%clk 0:00:59]} 44. Qf4+ {[%clk 0:00:13]}  Kh7 {[%clk 0:00:56]} 45. Qc7+ {[%clk 0:00:13]}  Kh6 {[%clk 0:00:53]} 46. Qf4+ {[%clk 0:00:13]}  Kh5 {[%clk 0:00:54]} 47. Qf3+ {[%clk 0:00:11]}  Kg5 {[%clk 0:00:54]} 48. Qb3 {[%clk 0:00:08]}  Qe5+ {[%clk 0:00:52]} 49. Kh1 {[%clk 0:00:09]}  Qc5 {[%clk 0:00:46]} 50. Qd1 {[%clk 0:00:06]}  Qc3 {[%clk 0:00:42]} 51. Qd8+ {[%clk 0:00:07]}  Kh5 {[%clk 0:00:32]} 52. Qd1+ {[%clk 0:00:07]}  Kh6 {[%clk 0:00:32]} 53. Qd7 {[%clk 0:00:07]}  Qe1+ {[%clk 0:00:26]} 54. Kh2 {[%clk 0:00:07]}  Qe5+ {[%clk 0:00:26]} 55. Kh1 {[%clk 0:00:08]}  Qe1+ {[%clk 0:00:24]} 56. Kh2 {[%clk 0:00:08]}  Kg5 {[%clk 0:00:24]} 57. Qd8+ {[%clk 0:00:08]}  Kf4 {[%clk 0:00:24]} 58. Qd4+ {[%clk 0:00:06]}  Qe4 {[%clk 0:00:23]} 59. Qd2+ {[%clk 0:00:05]}  Qe3 {[%clk 0:00:18]} 60. Qxa5 {[%clk 0:00:06]}  Qg3+ {[%clk 0:00:15]} 61. Kh1 {[%clk 0:00:07]}  Kg5 {[%clk 0:00:14]} 62. Qd8+ {[%clk 0:00:07]}  Kh5 {[%clk 0:00:14]} 63. Qd1+ {[%clk 0:00:07]}  Kg5 {[%clk 0:00:14]} 64. Qc1+ {[%clk 0:00:07]}  Kh5 {[%clk 0:00:13]} 65. Qd1+ {[%clk 0:00:07]}  Kg5 {[%clk 0:00:13]} 66. Qa1 {[%clk 0:00:08]}  Qd6 {[%clk 0:00:11]} 67. a5 {[%clk 0:00:08]}  Qa6 {[%clk 0:00:11]} 68. Qc1+ {[%clk 0:00:08]}  Kh5 {[%clk 0:00:11]} 69. Qd1+ {[%clk 0:00:09]}  Kh6 {[%clk 0:00:11]} 70. Qd2+ {[%clk 0:00:09]}  Kh5 {[%clk 0:00:11]} 71. Qd1+ {[%clk 0:00:09]}  Kh6 {[%clk 0:00:11]} 72. Qa1 {[%clk 0:00:09]}  Kh5 {[%clk 0:00:12]} 73. Qh8+ {[%clk 0:00:09]}  Kg5 {[%clk 0:00:12]} 74. Qd8+ {[%clk 0:00:09]}  Kh5 {[%clk 0:00:12]} 75. Qc7 {[%clk 0:00:10]}  Qe2 {[%clk 0:00:09]} 76. Kh2 {[%clk 0:00:09]}  Kg5 {[%clk 0:00:08]} 77. Qd8+ {[%clk 0:00:09]}  Kh5 {[%clk 0:00:08]} 78. Qh8+ {[%clk 0:00:09]}  Kg5 {[%clk 0:00:08]} 79. Qd8+ {[%clk 0:00:10]}  Kh5 {[%clk 0:00:08]} 80. Qd6 {[%clk 0:00:10]}  g5 {[%clk 0:00:07]} 81. Qc7 {[%clk 0:00:08]}  Kg6 {[%clk 0:00:07]} 82. Qb6+ {[%clk 0:00:09]}  Kh5 {[%clk 0:00:07]} 83. Qc7 {[%clk 0:00:09]}  Kg6 {[%clk 0:00:07]} 84. Qd6+ {[%clk 0:00:09]}  Kh5 {[%clk 0:00:07]} 85. Qc7 {[%clk 0:00:08]} 1/2-1/2


[Site "https://www.chess.com"]